fUST/lending_fUST_20251011
["ID","MTS","AMOUNT","RATE_DAILY","PERIOD"]
[390871700,1760182323413,-500.0,0.00024673,2]
[390871701,1760182323423,-500.0,0.00024673,2]
[390871702,1760182323432,-500.0,0.00024673,2]
[390871703,1760182323441,-500.0,0.00024673,2]
[390871704,1760182323451,-303.82076833,0.00024673,2]
[390871705,1760182323460,-279.75802418,0.00024673,2]
[390871706,1760182323470,-500.0,0.00024673,2]
[390871707,1760182323481,-500.0,0.00024673,2]
[390871708,1760182323490,-500.0,0.00024673,2]
[390871709,1760182323500,-500.0,0.00024673,2]
[390871710,1760182323509,-500.0,0.00024673,2]
[390871711,1760182323518,-500.0,0.00024673,2]
[390871712,1760182323528,-500.0,0.00024673,2]
[390871713,1760182323537,-500.0,0.00024673,2]
[390871714,1760182323546,-522.05049619,0.00024673,2]
[390871715,1760182323555,-500.0,0.00024673,2]
[390871716,1760182323565,-500.0,0.00024673,2]
[390871717,1760182323574,-500.0,0.00024673,2]
[390871718,1760182323583,-500.0,0.00024673,2]
[390871719,1760182323593,-500.0,0.00024673,2]
[390871720,1760182323603,-500.0,0.00024673,2]
[390871721,1760182323613,-500.0,0.00024673,2]
[390871722,1760182323622,-150.0,0.00024673,2]
[390871723,1760182323631,-500.0,0.00024673,2]
[390871724,1760182323641,-183.14814588,0.00024673,2]
[390871725,1760182323650,-500.0,0.00024673,2]
[390871726,1760182323659,-500.0,0.00024673,2]
[390871727,1760182323669,-500.0,0.00024673,2]
[390871728,1760182323679,-500.0,0.00024673,2]
[390871729,1760182323688,-500.0,0.00024673,2]
[390871730,1760182323697,-500.36814837,0.00024673,2]
[390871731,1760182323707,-500.0,0.00024673,2]
[390871732,1760182323716,-169.41773488,0.00024673,2]
[390871733,1760182323725,-500.0,0.00024673,2]
[390871734,1760182323735,-500.0,0.00024673,2]
[390871735,1760182323745,-500.0,0.00024673,2]
[390871736,1760182323754,-500.0,0.00024673,2]
[390871737,1760182323763,-500.0,0.00024673,2]
[390871738,1760182323773,-500.78946217,0.00024673,2]
[390871739,1760182323782,-500.0,0.00024673,2]
[390871740,1760182323791,-500.0,0.00024673,2]
[390871741,1760182323800,-261.54958746,0.00024673,2]
[390871742,1760182323809,-500.41342887,0.00024673,2]
[390871743,1760182323818,-207.91827889,0.00024673,2]
[390871744,1760182323828,-151.0,0.00024673,7]
[390871745,1760182323838,-673.863051,0.00024673,7]
[390871746,1760182323848,-673.863051,0.00024673,7]
[390871747,1760182323858,-151.0,0.00024673,7]
[390871748,1760182323869,-673.863051,0.00024673,7]
[390871749,1760182323878,-673.863057,0.00024673,7]
[390871750,1760182323888,-353.22486,0.00024673,7]
[390871751,1760182323897,-353.22486,0.00024673,7]
[390871752,1760182323907,-353.22486,0.00024673,7]
[390871753,1760182323916,-353.224855,0.00024673,7]
[390871754,1760182323929,-151.0,0.00024673,7]
[390871755,1760182323939,-151.0,0.00024673,7]
[390871756,1760182323948,-151.0,0.00024673,7]
[390871757,1760182323958,-791.401009,0.00024673,7]
[390871758,1760182323971,-791.401009,0.00024673,7]
[390871759,1760182323982,-791.401009,0.00024673,7]
[390871760,1760182323992,-791.401016,0.00024673,7]
[390871761,1760182324003,-500.0,0.000247,2]
[390871762,1760182324014,-151.0,0.00024712,9]
[390871763,1760182324024,-291.83913607,0.00024712,9]
[390871764,1760182324033,-151.0,0.00024712,9]
[390871765,1760182324042,-151.0,0.00024712,9]
[390871766,1760182324051,-151.0,0.00024712,9]
[390871767,1760182324061,-151.0,0.00024712,9]
[390871768,1760182324070,-151.0,0.00024712,9]
[390871769,1760182324079,-151.0,0.00024712,9]
[390871770,1760182324089,-151.0,0.00024712,9]
[390871771,1760182324099,-151.0,0.00024712,9]
[390871772,1760182324109,-151.0,0.00024712,9]
[390871773,1760182324119,-151.0,0.00024712,9]
[390871774,1760182324128,-151.0,0.00024712,9]
[390871775,1760182324138,-500.0,0.00024712,9]
[390871776,1760182324147,-534.23281477,0.00024712,9]
[390871777,1760182324156,-151.0,0.00024712,9]
[390871778,1760182324166,-151.0,0.00024712,9]
[390871779,1760182324176,-151.0,0.00024712,9]
[390871780,1760182324186,-151.0,0.00024712,9]
[390871781,1760182324196,-500.0,0.00024712,9]
[390871782,1760182324206,-151.0,0.00024712,9]
[390871783,1760182324216,-500.0,0.00024712,9]
[390871784,1760182324225,-500.0,0.00024712,9]
[390871785,1760182324235,-151.0,0.00024712,9]
[390871786,1760182324244,-300.0,0.00024739,20]
[390871787,1760182324254,-300.0,0.00024739,20]
[390871788,1760182324263,-300.0,0.00024739,20]
[390871789,1760182324273,-300.0,0.00024739,20]
[390871790,1760182324283,-300.0,0.00024739,20]
[390871791,1760182324292,-300.0,0.00024739,20]
[390871792,1760182324302,-300.0,0.00024739,20]
[390871793,1760182324311,-300.0,0.00024739,20]
[390871794,1760182324320,-300.0,0.00024739,20]
[390871795,1760182324329,-300.0,0.00024739,20]
[390871796,1760182324339,-300.0,0.00024739,20]
[390871797,1760182324348,-300.0,0.00024739,20]
[390871798,1760182324357,-300.0,0.00024739,20]
[390871799,1760182324367,-300.0,0.00024739,20]
[390871800,1760182324377,-300.0,0.00024739,20]
[390871801,1760182324386,-151.0,0.00024767,9]
[390871802,1760182324395,-151.6128558,0.00024767,9]
[390871803,1760182324404,-198.0,0.00024767,9]
[390871804,1760182324413,-151.0,0.00024767,9]
[390871805,1760182324422,-207.97664729,0.00024767,9]
[390871806,1760182324431,-198.0,0.00024767,9]
[390871807,1760182324440,-151.0,0.00024767,9]
[390871808,1760182324450,-151.0,0.00024767,9]
[390871809,1760182324459,-151.0,0.00024767,9]
[390871810,1760182324468,-282.44633068,0.00024767,9]
[390871811,1760182324477,-151.0,0.00024767,9]
[390871812,1760182324486,-287.67860669,0.00024767,9]
[390871813,1760182324495,-151.0,0.00024767,9]
[390871814,1760182324505,-151.0,0.00024767,9]
[390871815,1760182324515,-151.0,0.00024767,9]
[390871816,1760182324524,-151.0,0.00024767,9]
[390871817,1760182324534,-500.0,0.00024767,9]
[390871818,1760182324543,-151.0,0.00024767,9]
[390871819,1760182324552,-500.0,0.00024767,9]
[390871820,1760182324562,-500.0,0.00024767,9]
[390871821,1760182324570,-151.0,0.000248,7]
[390871822,1760182324580,-151.0,0.000248,7]
[390871823,1760182324589,-151.0,0.000248,7]
[390871824,1760182324598,-250.276704,0.000248,7]
[390871825,1760182324607,-250.276704,0.000248,7]
[390871826,1760182324617,-250.276704,0.000248,7]
[390871827,1760182324627,-250.276704,0.000248,7]
[390871828,1760182324636,-151.0,0.000248,7]
[390871829,1760182324645,-151.0,0.000248,7]
[390871830,1760182324655,-151.0,0.000248,7]
[390871831,1760182324664,-228478.814364,0.000248,2]
[390871832,1760182324674,-1740.99199513,0.000248,4]
[390871833,1760182324683,-150.95070752,0.0002481,2]
[390871834,1760182324692,-198.0,0.00024821,9]
[390871835,1760182324701,-151.0,0.00024821,9]
[390871836,1760182324710,-175.19068344,0.00024821,9]
[390871837,1760182324719,-151.0,0.00024821,9]
[390871838,1760182324728,-151.0,0.00024821,9]
[390871839,1760182324737,-151.0,0.00024821,9]
[390871840,1760182324746,-215.41218431,0.00024821,9]
[390871841,1760182324755,-221.61764642,0.00024821,9]
[390871842,1760182324765,-151.0,0.00024821,9]
[390871843,1760182324774,-151.0,0.00024821,9]
[390871844,1760182324783,-524.0,0.00024821,9]
[390871845,1760182324793,-151.0,0.00024821,9]
[390871846,1760182324802,-500.0,0.00024821,9]
[390871847,1760182324811,-460.80567964,0.00024821,9]
[390871848,1760182324820,-500.0,0.0002483,2]
[390871849,1760182324830,-600.0,0.00024841,20]
[390871850,1760182324839,-90741.0,0.0002487,7]
[390871851,1760182324848,-2609.37557469,0.0002487,7]
[390871852,1760182324858,-151.0,0.0002487,7]
[390871853,1760182324868,-151.0,0.0002487,7]
[390871854,1760182324876,-151.0,0.0002487,7]
[390871855,1760182324886,-320.392341,0.0002487,7]
[390871856,1760182324895,-320.392341,0.0002487,7]
[390871857,1760182324905,-153.213658,0.0002487,7]
[390871858,1760182324914,-320.392341,0.0002487,7]
[390871859,1760182324926,-320.392342,0.0002487,7]
[390871860,1760182324938,-152.283247,0.0002487,7]
[390871861,1760182324947,-152.283247,0.0002487,7]
[390871862,1760182324956,-152.283247,0.0002487,7]
[390871863,1760182324966,-152.283251,0.0002487,7]
[390871864,1760182324977,-174.769629,0.0002487,7]
[390871865,1760182324986,-181.659801,0.0002487,7]
[390871866,1760182324996,-174.769629,0.0002487,7]
[390871867,1760182325007,-174.769629,0.0002487,7]
[390871868,1760182325017,-181.659801,0.0002487,7]
[390871869,1760182325026,-181.659801,0.0002487,7]
[390871870,1760182325036,-174.769634,0.0002487,7]
[390871871,1760182325046,-181.65979372,0.0002487,7]
[390871872,1760182325055,-918.017953,0.0002487,7]
[390871873,1760182325066,-918.017953,0.0002487,7]
[390871874,1760182325075,-918.017953,0.0002487,7]
[390871875,1760182325085,-918.017955,0.0002487,7]
[390871876,1760182325094,-500.54225061,0.00024873,2]
[390871877,1760182325104,-500.1912246,0.00024873,2]
[390871878,1760182325113,-500.0,0.00024873,2]
[390871879,1760182325122,-177.28429681,0.00024873,2]
[390871880,1760182325131,-500.0,0.00024873,2]
[390871881,1760182325141,-500.0,0.00024873,2]
[390871882,1760182325151,-163.24919086,0.00024873,2]
[390871883,1760182325160,-502.59945279,0.00024873,2]
[390871884,1760182325169,-248.44886256,0.00024873,2]
[390871885,1760182325178,-261.78584438,0.00024876,9]
[390871886,1760182325187,-157.17235922,0.00024876,9]
[390871887,1760182325197,-245.0,0.00024876,9]
[390871888,1760182325206,-151.0,0.00024876,9]
[390871889,1760182325215,-198.0,0.00024876,9]
[390871890,1760182325225,-151.0,0.00024876,9]
[390871891,1760182325235,-151.0,0.00024876,9]
[390871892,1760182325245,-454.87937848,0.00024876,9]
[390871893,1760182325254,-298.08050243,0.00024879,2]
[390871894,1760182325263,-160.0,0.00024879,2]
[390871895,1760182325272,-312.16666667,0.0002488,2]
[390871896,1760182325281,-642.9612094,0.00024884,2]
[390871897,1760182325291,-151.51440632,0.00024885,2]
[390871898,1760182325301,-161.55765258,0.000249,2]
[390871899,1760182325310,-151.0,0.000249,7]
[390871900,1760182325320,-151.0,0.000249,7]
[390871901,1760182325330,-151.0,0.000249,7]
[390871902,1760182325339,-151.0,0.000249,7]
[390871903,1760182325349,-151.0,0.000249,7]
[390871904,1760182325358,-151.0,0.000249,7]
[390871905,1760182325370,-151.0,0.000249,7]
[390871906,1760182325380,-151.368948,0.000249,7]
[390871907,1760182325390,-151.0,0.000249,7]
[390871908,1760182325400,-151.0,0.000249,7]
[390871909,1760182325409,-151.0,0.000249,7]
[390871910,1760182325419,-151.0,0.000249,7]
[390871911,1760182325429,-184.842543,0.000249,7]
[390871912,1760182325440,-184.842543,0.000249,7]
[390871913,1760182325450,-151.0,0.000249,7]
[390871914,1760182325460,-184.842543,0.000249,7]
[390871915,1760182325469,-184.842543,0.000249,7]
[390871916,1760182325479,-151.0,0.000249,7]
[390871917,1760182325497,-151.0,0.000249,7]
[390871918,1760182325507,-151.0,0.000249,3]
[390871919,1760182325517,-151.0,0.000249,3]
[390871920,1760182325526,-151.0,0.000249,3]
[390871921,1760182325535,-160.478811,0.000249,7]
[390871922,1760182325545,-151.0,0.000249,7]
[390871923,1760182325555,-151.0,0.000249,7]
[390871924,1760182325565,-151.0,0.000249,7]
[390871925,1760182325574,-151.0,0.000249,7]
[390871926,1760182325584,-151.0,0.000249,7]
[390871927,1760182325593,-690.753997,0.000249,7]
[390871928,1760182325603,-690.753997,0.000249,7]
[390871929,1760182325767,-690.753997,0.000249,7]
[390871930,1760182325777,-151.0,0.000249,7]
[390871931,1760182325786,-690.753997,0.000249,7]
[390871932,1760182325795,-855.54476,0.000249,7]
[390871933,1760182325805,-855.54476,0.000249,7]
[390871934,1760182325814,-855.54476,0.000249,7]
[390871935,1760182325824,-855.54476,0.000249,7]
[390871936,1760182325833,-692.837048,0.000249,7]
[390871937,1760182325843,-692.837048,0.000249,7]
[390871938,1760182325853,-692.837048,0.000249,7]
[390871939,1760182325864,-692.837048,0.000249,7]
[390871940,1760182325873,-151.0,0.000249,7]
[390871941,1760182325884,-151.0,0.000249,7]
[390871942,1760182325894,-220.859001,0.000249,7]
[390871943,1760182325903,-151.0,0.000249,7]
[390871944,1760182325913,-151.0,0.000249,7]
[390871945,1760182325923,-151.0,0.000249,7]
[390871946,1760182325936,-186.446428,0.000249,7]
[390871947,1760182325945,-151.0,0.000249,7]
[390871948,1760182325956,-186.446428,0.000249,7]
[390871949,1760182325965,-186.446428,0.000249,7]
[390871950,1760182325975,-186.446428,0.000249,7]
[390871951,1760182325985,-151.0,0.000249,7]
[390871952,1760182325994,-151.0,0.000249,7]
[390871953,1760182326005,-151.0,0.000249,7]
[390871954,1760182326015,-209.885403,0.000249,7]
[390871955,1760182326024,-151.0,0.000249,7]
[390871956,1760182326033,-151.0,0.000249,7]
[390871957,1760182326043,-161.388086,0.000249,7]
[390871958,1760182326052,-161.388086,0.000249,7]
[390871959,1760182326061,-151.0,0.000249,7]
[390871960,1760182326071,-151.0,0.000249,7]
[390871961,1760182326080,-151.0,0.000249,7]
[390871962,1760182326090,-161.388086,0.000249,7]
[390871963,1760182326099,-161.388086,0.000249,7]
[390871964,1760182326108,-275.681012,0.000249,7]
[390871965,1760182326119,-275.681012,0.000249,7]
[390871966,1760182326128,-275.681012,0.000249,7]
[390871967,1760182326137,-275.681012,0.000249,7]
[390871968,1760182326147,-151.0,0.000249,7]
[390871969,1760182326156,-151.0,0.000249,7]
[390871970,1760182326166,-151.0,0.000249,7]
[390871971,1760182326176,-200.212284,0.000249,7]
[390871972,1760182326185,-151.0,0.000249,7]
[390871973,1760182326194,-234.5926,0.000249,7]
[390871974,1760182326203,-234.5926,0.000249,7]
[390871975,1760182326213,-234.5926,0.000249,7]
[390871976,1760182326223,-234.592606,0.000249,7]
[390871977,1760182326232,-151.0,0.000249,7]
[390871978,1760182326241,-151.0,0.000249,7]
[390871979,1760182326251,-151.0,0.000249,7]
[390871980,1760182326260,-151.0,0.000249,7]
[390871981,1760182326269,-151.0,0.000249,7]
[390871982,1760182326279,-151.0,0.000249,7]
[390871983,1760182326288,-185.463337,0.000249,7]
[390871984,1760182326297,-152.807861,0.000249,7]
[390871985,1760182326307,-185.463337,0.000249,7]
[390871986,1760182326316,-185.463337,0.000249,7]
[390871987,1760182326325,-185.463341,0.000249,7]
[390871988,1760182326334,-151.0,0.000249,7]
[390871989,1760182326343,-151.0,0.000249,7]
[390871990,1760182326353,-151.0,0.000249,7]
[390871991,1760182326362,-151.0,0.000249,7]
[390871992,1760182326373,-218.95049,0.000249,7]
[390871993,1760182326382,-259.841167,0.000249,7]
[390871994,1760182326391,-259.841167,0.000249,7]
[390871995,1760182326400,-259.841167,0.000249,7]
[390871996,1760182326409,-259.841175,0.000249,7]
[390871997,1760182326419,-427.265,0.000249,7]
[390871998,1760182326428,-427.265,0.000249,7]
[390871999,1760182326437,-427.265,0.000249,7]
[390872000,1760182326446,-427.265,0.000249,7]
[390872001,1760182326456,-1851.808175,0.000249,7]
[390872002,1760182326465,-245.711866,0.000249,7]
[390872003,1760182326475,-1851.808175,0.000249,7]
[390872004,1760182326484,-1851.808175,0.000249,7]
[390872005,1760182326494,-245.711866,0.000249,7]
[390872006,1760182326504,-246.234086,0.000249,7]
[390872007,1760182326514,-1851.808183,0.000249,7]
[390872008,1760182326523,-246.234086,0.000249,7]
[390872009,1760182326542,-246.234086,0.000249,7]
[390872010,1760182326554,-246.234078,0.000249,7]
[390872011,1760182326563,-151.0,0.000249,7]
[390872012,1760182326574,-317.173052,0.000249,7]
[390872013,1760182326583,-151.0,0.000249,7]
[390872014,1760182326593,-317.173052,0.000249,7]
[390872015,1760182326604,-317.173052,0.000249,7]
[390872016,1760182326616,-317.173048,0.000249,7]
[390872017,1760182326627,-450.720604,0.000249,7]
[390872018,1760182326638,-450.720604,0.000249,7]
[390872019,1760182326648,-450.720604,0.000249,7]
[390872020,1760182326659,-172.5933,0.000249,7]
[390872021,1760182326669,-450.720602,0.000249,7]
[390872022,1760182326680,-172.5933,0.000249,7]
[390872023,1760182326690,-172.5933,0.000249,7]
[390872024,1760182326700,-172.5933,0.000249,7]
[390872025,1760182326710,-151.0,0.000249,7]
[390872026,1760182326720,-151.0,0.000249,7]
[390872027,1760182326730,-299.823916,0.000249,7]
[390872028,1760182326741,-250.964338,0.000249,7]
[390872029,1760182326751,-245.711866,0.000249,7]
[390872030,1760182326761,-245.711875,0.000249,7]
[390872031,1760182326771,-151.0,0.000249,7]
[390872032,1760182326782,-240.590188,0.000249,7]
[390872033,1760182326792,-652998.113001,0.000249,2]
[390872034,1760182326801,-1000.0,0.00024921,2]
[390872035,1760182326812,-1000.0,0.00024921,2]
[390872036,1760182326822,-1000.0,0.00024921,2]
[390872037,1760182326831,-1000.0,0.00024921,2]
[390872038,1760182326842,-1001.37593705,0.00024921,2]
[390872039,1760182326852,-1000.0,0.00024921,2]
[390872040,1760182326863,-2609.37557469,0.00024923,2]
[390872041,1760182326875,-227.64,0.0002493,2]
[390872042,1760182326885,-151.0,0.00024931,9]
[390872043,1760182326895,-245.0,0.00024931,9]
[390872044,1760182326904,-245.0,0.00024931,9]
[390872045,1760182326915,-500.0,0.00025,2]
[390872046,1760182326925,-500.0,0.00025021,2]
[390872047,1760182326938,-172.5,0.00025056,2]
[390872048,1760182326948,-161.55765258,0.000251,2]
[390872049,1760182326958,-500.0,0.00025104,2]
[390872050,1760182326968,-189.715657,0.00025141,5]
[390872051,1760182326979,-227.64,0.00025204,2]
[390872052,1760182326989,-579.37251432,0.00025221,2]
[390872053,1760182327000,-1000.0,0.00025221,2]
[390872054,1760182327010,-1000.0,0.00025221,2]
[390872055,1760182327019,-1000.0,0.00025221,2]
[390872056,1760182327029,-156.86003574,0.00025221,2]
[390872057,1760182327038,-1000.0,0.00025221,2]
[390872058,1760182327047,-570.81427335,0.00025221,2]
[390872059,1760182327057,-1000.0,0.00025221,2]
[390872060,1760182327067,-500.28208769,0.00025221,2]
[390872061,1760182327077,-1000.0,0.00025221,2]
[390872062,1760182327086,-1000.0,0.00025221,2]
[390872063,1760182327096,-1000.0,0.00025221,2]
[390872064,1760182327106,-1000.0,0.00025221,2]
[390872065,1760182327117,-1000.0,0.00025221,2]
[390872066,1760182327127,-1000.0,0.00025221,2]
[390872067,1760182327139,-1000.0,0.00025221,2]
[390872068,1760182327151,-581.13848068,0.00025221,2]
[390872069,1760182327163,-1000.0,0.00025221,2]
[390872070,1760182327174,-1001.00883299,0.00025221,2]
[390872071,1760182327185,-1139.78746171,0.00025221,2]
[390872072,1760182327197,-344.94064717,0.00025221,2]
[390872073,1760182327208,-1000.0,0.00025221,2]
[390872074,1760182327221,-1000.0,0.00025221,2]
[390872075,1760182327231,-1000.0,0.00025221,2]
[390872076,1760182327242,-1000.0,0.00025221,2]
[390872077,1760182327253,-1000.0,0.00025221,2]
[390872078,1760182327265,-342.36944102,0.00025221,2]
[390872079,1760182327274,-880.52601766,0.00025221,2]
[390872080,1760182327285,-1000.0,0.00025221,2]
[390872081,1760182327297,-1000.0,0.00025221,2]
[390872082,1760182327308,-502.98383582,0.00025221,2]
[390872083,1760182327318,-1105.72077124,0.00025221,2]
[390872084,1760182327329,-1000.0,0.00025221,2]
[390872085,1760182327341,-1000.0,0.00025221,2]
[390872086,1760182327351,-1000.0,0.00025221,2]
[390872087,1760182327361,-507.75987965,0.00025221,2]
[390872088,1760182327373,-1000.0,0.00025221,2]
[390872089,1760182327382,-1000.0,0.00025221,2]
[390872090,1760182327392,-1000.0,0.00025221,2]
[390872091,1760182327402,-1000.0,0.00025221,2]
[390872092,1760182327411,-1000.0,0.00025221,2]
[390872093,1760182327420,-703.25041916,0.00025221,2]
[390872094,1760182327430,-440.95734321,0.00025221,2]
[390872095,1760182327439,-1004.1325774,0.00025221,2]
[390872096,1760182327448,-500.56618965,0.00025221,2]
[390872097,1760182327457,-5436.02062563,0.00025287,2]
[390872098,1760182327467,-154.809388,0.00025374,9]
[390872099,1760182327477,-500.0,0.00025378,2]
[390872100,1760182327487,-5977.17141521,0.0002538,2]
[390872101,1760182327496,-1000.0,0.00025396,2]
[390872102,1760182327506,-2609.37557469,0.000254,7]
[390872103,1760182327516,-2609.37557469,0.000254,3]
[390872104,1760182327525,-502.93689473,0.00025421,2]
[390872105,1760182327535,-1000.0,0.00025421,2]
[390872106,1760182327545,-1500.0,0.00025468,2]
[390872107,1760182327554,-1501.60108235,0.00025468,2]
[390872108,1760182327563,-1001.84242892,0.00025468,2]
[390872109,1760182327573,-1500.0,0.00025468,2]
[390872110,1760182327581,-1001.0330621,0.00025468,2]
[390872111,1760182327591,-227.64,0.00025478,2]
[390872112,1760182327600,-1362.0,0.00025541,2]
[390872113,1760182327609,-1362.0,0.00025563,7]
[390872114,1760182327619,-1362.0,0.00025633,2]
[390872115,1760182327628,-501.83601774,0.0002565,2]
[390872116,1760182327637,-500.0,0.0002565,2]
[390872117,1760182327646,-200.43040235,0.0002565,2]
[390872118,1760182327656,-500.0,0.00025652,2]
[390872119,1760182327665,-195.0,0.00025656,2]
[390872120,1760182327674,-1177.7,0.00025702,2]
[390872121,1760182327684,-152.198179,0.00025711,9]
[390872122,1760182327693,-154.809388,0.00025711,9]
[390872123,1760182327702,-393.04,0.00025716,3]
[390872124,1760182327711,-393.04,0.00025716,3]
[390872125,1760182327720,-1112.04,0.00025722,3]
[390872126,1760182327729,-556.02,0.00025722,3]
[390872127,1760182327738,-3601.72,0.00025733,3]
[390872128,1760182327748,-2598.6,0.00025733,3]
[390872129,1760182327757,-1876.26,0.00025733,3]
[390872130,1760182327766,-227.66904035,0.00025752,2]
[390872131,1760182327775,-1500.0,0.00025768,2]
[390872132,1760182327784,-1444.09120036,0.00025768,2]
[390872133,1760182327794,-992.0,0.00025768,2]
[390872134,1760182327803,-321.53753827,0.00025768,2]
[390872135,1760182327812,-795.79589381,0.00025768,2]
[390872136,1760182327821,-1500.0,0.00025768,2]
[390872137,1760182327830,-1000.0,0.00025768,2]
[390872138,1760182327839,-1010.99151939,0.00025768,2]
[390872139,1760182327849,-1500.0,0.00025768,2]
[390872140,1760182327859,-1500.0,0.00025768,2]
[390872141,1760182327871,-366.79694638,0.00025768,2]
[390872142,1760182327880,-500.59476898,0.00025768,2]
[390872143,1760182327889,-748.75355055,0.00025768,2]
[390872144,1760182327899,-1000.0,0.00025768,2]
[390872145,1760182327909,-1500.0,0.00025768,2]
[390872146,1760182327919,-568.67253914,0.00025768,2]
[390872147,1760182327931,-500.0,0.00025768,2]
[390872148,1760182327941,-1500.0,0.00025768,2]
[390872149,1760182327951,-1501.71126757,0.00025768,2]
[390872150,1760182327962,-500.0,0.00025768,2]
[390872151,1760182327971,-1500.0,0.00025768,2]
[390872152,1760182327981,-1014.57367624,0.00025768,2]
[390872153,1760182327992,-1500.0,0.00025768,2]
[390872154,1760182328002,-1500.0,0.00025768,2]
[390872155,1760182328011,-1500.0,0.00025768,2]
[390872156,1760182328021,-1500.0,0.00025768,2]
[390872157,1760182328031,-1505.28069607,0.00025768,2]
[390872158,1760182328041,-1500.0,0.00025768,2]
[390872159,1760182328050,-1000.0,0.00025825,2]
[390872160,1760182328060,-1362.0,0.00025843,2]
[390872161,1760182328070,-1362.0,0.0002586,2]
[390872162,1760182328079,-1362.0,0.00025866,2]
[390872163,1760182328089,-1362.0,0.00025873,2]
[390872164,1760182328098,-2224.1,0.00025916,3]
[390872165,1760182328108,-500.0,0.00025926,2]
[390872166,1760182328118,-151.0,0.00025964,2]
[390872167,1760182328128,-500.0,0.00025964,2]
[390872168,1760182328137,-250.0,0.00025964,2]
[390872169,1760182328147,-151.0,0.00025964,2]
[390872170,1760182328157,-250.0,0.00025964,2]
[390872171,1760182328167,-151.0,0.00025964,2]
[390872172,1760182328176,-250.0,0.00025964,2]
[390872173,1760182328186,-151.0,0.00025964,2]
[390872174,1760182328196,-250.0,0.00025964,2]
[390872175,1760182328205,-500.0,0.00025964,2]
[390872176,1760182328214,-151.0,0.00025964,2]
[390872177,1760182328223,-250.0,0.00025964,2]
[390872178,1760182328233,-500.0,0.00025964,2]
[390872179,1760182328243,-151.0,0.00025964,2]
[390872180,1760182328253,-250.0,0.00025964,2]
[390872181,1760182328263,-250.0,0.00025964,2]
[390872182,1760182328272,-500.0,0.00025964,2]
[390872183,1760182328282,-151.0,0.00025964,2]
[390872184,1760182328291,-250.0,0.00025964,2]
[390872185,1760182328302,-500.0,0.00025964,2]
[390872186,1760182328312,-250.0,0.00025964,2]
[390872187,1760182328322,-504.12458136,0.00025964,2]
[390872188,1760182328332,-151.0,0.00025964,2]
[390872189,1760182328342,-151.0,0.00025964,2]
[390872190,1760182328352,-250.0,0.00025964,2]
[390872191,1760182328361,-500.0,0.00025964,2]
[390872192,1760182328372,-151.0,0.00025964,2]
[390872193,1760182328382,-151.0,0.00025964,2]
[390872194,1760182328392,-250.0,0.00025964,2]
[390872195,1760182328402,-250.0,0.00025964,2]
[390872196,1760182328411,-500.0,0.00025964,2]
[390872197,1760182328421,-151.0,0.00025964,2]
[390872198,1760182328432,-151.0,0.00025964,2]
[390872199,1760182328442,-250.0,0.00025964,2]